bitfinex/quotes_BTCUSD_20230113
["timestamp","ask_amount","ask_price","bid_price","bid_amount"]
[1673602551021,0.01,18891.0,18890.0,0.6380623]
[1673602551274,0.91639089,18893.0,18890.0,0.6380623]
[1673602552029,0.92639089,18893.0,18890.0,0.6380623]
[1673602552784,1.1644792,18893.0,18890.0,0.6380623]
[1673602553277,0.50430862,18892.0,18890.0,0.6380623]
[1673602553516,0.60561069,18892.0,18890.0,0.6380623]
[1673602554494,0.51561069,18892.0,18890.0,0.6380623]
[1673602560898,0.50561069,18892.0,18890.0,0.6380623]
[1673602561155,0.50561069,18892.0,18890.0,0.6760623]
[1673602561660,0.00130207,18892.0,18890.0,0.6760623]
[1673602564450,0.00130207,18892.0,18891.0,0.70366277]
[1673602565740,0.72099237,18892.0,18890.0,0.038]
[1673602565996,0.72099237,18892.0,18889.0,0.53089917]
[1673602566245,0.73099237,18892.0,18889.0,0.53089917]
[1673602566990,0.72099237,18892.0,18889.0,0.53089917]
[1673602567238,0.66389829,18891.0,18889.0,0.64189917]
[1673602568003,0.82262383,18891.0,18889.0,0.114]
[1673602568273,1.06071214,18891.0,18889.0,0.114]
[1673602568556,0.15872554,18890.0,18889.0,0.114]
[1673602568763,0.92163118,18890.0,18889.0,0.003]
[1673602569010,1.08020276,18890.0,18889.0,0.003]
[1673602569255,1.08020276,18890.0,18889.0,0.114]
[1673602569505,1.23908226,18890.0,18889.0,0.003]
[1673602569751,1.51948226,18890.0,18889.0,0.003]
[1673602570004,1.81948226,18890.0,18889.0,0.003]
[1673602570225,1.51948226,18890.0,18889.0,0.003]
[1673602570448,1.59639395,18890.0,18889.0,0.008]
[1673602570669,1.72633348,18890.0,18889.0,0.008]
[1673602571225,2.04334985,18890.0,18889.0,0.008]
[1673602571487,2.04413348,18890.0,18889.0,0.008]
[1673602571998,1.41790833,18890.0,18889.0,0.008]
[1673602572263,1.41790833,18890.0,18889.0,0.00789509]
[1673602572264,2.0651191,18890.0,18889.0,0.00789509]
[1673602572540,1.64905156,18890.0,18889.0,0.00789509]
[1673602572791,2.0652722,18890.0,18889.0,0.00789509]
[1673602573048,1.66891077,18890.0,18889.0,0.00789509]
[1673602573549,2.19514347,18890.0,18889.0,0.00789509]
[1673602573810,2.19644371,18890.0,18889.0,0.00789509]
[1673602574566,2.19644371,18890.0,18888.0,0.00503748]
[1673602574567,2.81041605,18890.0,18888.0,0.00503748]
[1673602574820,1.73793735,18889.0,18888.0,0.00503748]
[1673602575069,1.26216501,18889.0,18888.0,0.00503748]
[1673602575330,1.78839771,18889.0,18888.0,0.00503748]
[1673602575575,2.47294128,18889.0,18887.0,0.00503748]
[1673602575825,2.11413361,18888.0,18887.0,0.00503748]
[1673602576087,2.42263361,18888.0,18887.0,0.00503748]
[1673602576835,2.10586968,18888.0,18887.0,0.00503748]
[1673602577073,2.60416968,18888.0,18887.0,0.01203748]
[1673602577318,2.92076164,18888.0,18887.0,0.01203748]
[1673602577558,3.44699434,18888.0,18886.0,0.00460427]
[1673602577801,2.11711685,18887.0,18886.0,0.00460427]
[1673602578057,2.11581685,18887.0,18886.0,0.00460427]
[1673602578298,2.20858765,18887.0,18886.0,0.00460427]
[1673602578548,2.36687181,18887.0,18886.0,0.00460427]
[1673602578819,2.52515671,18887.0,18886.0,0.01060427]
[1673602579065,3.05138941,18887.0,18886.0,0.00460427]
[1673602579287,2.7756029,18887.0,18886.0,0.01060427]
[1673602580286,3.01303005,18887.0,18886.0,0.01060427]
[1673602581047,2.7756029,18887.0,18886.0,0.01060427]
[1673602581785,3.28830392,18887.0,18886.0,0.01060427]
[1673602582044,2.28075436,18887.0,18886.0,0.01060427]
[1673602582295,1.92626304,18887.0,18886.0,0.01060427]
[1673602582567,2.16369019,18887.0,18886.0,0.01060427]
[1673602583066,2.16354106,18887.0,18886.0,0.01060427]
[1673602583313,2.46354106,18887.0,18886.0,0.01060427]
[1673602583560,2.80414756,18887.0,18886.0,0.01060427]
[1673602584846,3.22436066,18887.0,18886.0,0.01060427]
[1673602585106,3.06630009,18887.0,18886.0,0.01060427]
[1673602585628,0.5463,18887.0,18886.0,0.01060427]
[1673602585872,0.5378,18887.0,18886.0,0.01060427]
[1673602586688,0.22,18887.0,18886.0,0.01060427]
[1673602586915,0.12,18887.0,18886.0,0.01060427]
[1673602587167,0.12,18887.0,18886.0,0.75251667]
[1673602587419,0.12,18887.0,18886.0,1.03291667]
[1673602587705,0.88041022,18889.0,18886.0,1.35634967]
[1673602587940,0.103,18887.0,18886.0,0.75451667]
[1673602588175,0.56261022,18889.0,18886.0,0.75451667]
[1673602588176,0.56261022,18889.0,18886.0,1.02561667]
[1673602588428,0.56261022,18889.0,18887.0,0.469633]
[1673602588682,0.56261022,18889.0,18888.0,0.329433]
[1673602588942,0.56261022,18889.0,18887.0,0.13176394]
[1673602589445,0.00130024,18890.0,18887.0,0.13176394]
[1673602589713,0.162,18889.0,18888.0,0.54885581]
[1673602590695,0.1,18889.0,18888.0,0.54885581]
[1673602590946,0.59347215,18890.0,18888.0,0.54885581]
[1673602591195,0.53147215,18890.0,18888.0,0.54885581]
[1673602591459,0.103,18889.0,18888.0,0.55685581]
[1673602591720,0.1,18891.0,18888.0,0.55685581]
[1673602591973,0.1,18891.0,18889.0,0.60486056]
[1673602592488,0.009,18890.0,18889.0,0.60486056]
[1673602592714,0.1,18891.0,18889.0,0.60486056]
[1673602593702,0.109,18891.0,18889.0,0.60486056]
[1673602593949,0.0013001,18890.0,18889.0,0.60486056]
[1673602594200,0.0013001,18890.0,18889.0,0.60786056]
[1673602595212,0.0013001,18890.0,18889.0,0.60486056]
[1673602595472,0.0103001,18890.0,18889.0,0.60786056]
[1673602596736,0.21014302,18890.0,18889.0,0.003]
[1673602596993,0.51014302,18890.0,18889.0,0.003]
[1673602597239,0.81690359,18890.0,18889.0,0.003]
[1673602597494,0.77670359,18890.0,18889.0,0.003]
[1673602599513,1.01413074,18890.0,18889.0,0.003]
[1673602599768,0.77670359,18890.0,18889.0,0.003]
[1673602600023,1.18898072,18890.0,18889.0,0.003]
[1673602600270,1.01413074,18890.0,18889.0,0.003]
[1673602601030,0.77670359,18890.0,18889.0,0.003]
[1673602601543,1.01413074,18890.0,18889.0,0.003]
[1673602601794,0.47670359,18890.0,18889.0,0.003]
[1673602602047,0.31864302,18890.0,18889.0,0.003]
[1673602603334,0.61864302,18890.0,18889.0,0.003]
[1673602603583,0.31864302,18890.0,18889.0,0.003]
[1673602603847,0.47670359,18890.0,18889.0,0.003]
[1673602604099,0.77670359,18890.0,18889.0,0.003]
[1673602605373,1.01413074,18890.0,18889.0,0.003]
[1673602605886,0.71413074,18890.0,18889.0,0.003]
[1673602606109,1.01413074,18890.0,18889.0,0.003]
[1673602607194,0.85607017,18890.0,18889.0,0.003]
[1673602607456,1.01444554,18890.0,18889.0,0.003]
[1673602607705,1.17263923,18890.0,18889.0,0.003]
[1673602607994,0.7144451,18890.0,18889.0,0.003]
[1673602608242,1.17263923,18890.0,18889.0,0.003]
[1673602612113,0.87263923,18890.0,18889.0,0.003]
[1673602612362,1.17263923,18890.0,18889.0,0.003]
[1673602613367,1.17263923,18890.0,18889.0,0.00291375]
[1673602614363,0.87263878,18890.0,18889.0,0.00291375]
[1673602615106,1.17263878,18890.0,18889.0,0.00291375]
[1673602616377,0.87263878,18890.0,18889.0,0.00291375]
[1673602617377,1.17263878,18890.0,18889.0,0.00291375]
[1673602617630,0.87263878,18890.0,18889.0,0.00291375]
[1673602617874,1.17263878,18890.0,18889.0,0.00291375]
[1673602618185,0.87263878,18890.0,18889.0,0.00291375]
[1673602619909,0.16873347,18890.0,18889.0,0.75624856]
[1673602620169,0.01029965,18890.0,18889.0,0.75624856]
[1673602620421,0.01029965,18890.0,18889.0,0.68630856]
[1673602622185,0.01029965,18890.0,18889.0,1.01574156]
[1673602622726,0.16873347,18890.0,18889.0,0.68630856]
[1673602623244,0.40616062,18890.0,18889.0,0.68630856]
[1673602625212,0.56429586,18890.0,18889.0,0.68630856]
[1673602625429,0.32686871,18890.0,18889.0,0.00291375]
[1673602625678,0.6648696,18890.0,18889.0,0.00260094]
[1673602626428,0.66486785,18890.0,18889.0,0.00260094]
[1673602626679,0.82282362,18890.0,18889.0,0.00260094]
[1673602627440,0.96084905,18890.0,18889.0,0.58883432]
[1673602627696,0.40700427,18890.0,18889.0,0.58883432]
[1673602627944,0.40700427,18890.0,18889.0,0.91826732]
[1673602628198,0.40700427,18890.0,18889.0,0.58883432]
[1673602628423,0.56489414,18890.0,18889.0,0.58883432]
[1673602629180,0.32686871,18890.0,18889.0,0.58883432]
[1673602629433,0.72282362,18890.0,18889.0,0.58883432]
[1673602629713,0.72282362,18890.0,18889.0,0.00260094]
[1673602630691,0.71382362,18890.0,18888.0,0.82448461]
[1673602630944,0.39667761,18889.0,18888.0,0.82448461]
[1673602632686,0.39667761,18889.0,18888.0,0.88848461]
[1673602632933,0.39667761,18889.0,18886.0,0.64142128]
[1673602632934,0.86856063,18889.0,18886.0,0.64142128]
[1673602633180,1.07886557,18889.0,18888.0,0.064]
[1673602633434,0.86856063,18889.0,18888.0,0.064]
[1673602633959,0.86856063,18889.0,18886.0,0.64142128]
[1673602634211,0.39673097,18888.0,18886.0,0.78142128]
[1673602634460,0.39802808,18888.0,18887.0,0.63001884]
[1673602636283,0.39902808,18888.0,18887.0,0.76801884]
[1673602639609,0.39904103,18888.0,18887.0,0.76801884]
[1673602641815,0.39904581,18888.0,18887.0,0.76801884]
[1673602643263,0.24033569,18888.0,18887.0,0.76801884]
[1673602643528,0.39904388,18888.0,18887.0,0.76801884]
[1673602644042,0.24033569,18888.0,18887.0,0.76801884]
[1673602644302,0.16100453,18888.0,18887.0,0.76801884]
[1673602644554,0.00229711,18888.0,18887.0,0.138]
[1673602644815,0.00229711,18888.0,18887.0,1.15211545]
[1673602645835,0.00229711,18888.0,18887.0,0.76485594]
[1673602646093,0.00229711,18888.0,18887.0,1.53349584]
[1673602647598,0.00229711,18888.0,18887.0,1.67369584]
[1673602648389,0.00229711,18888.0,18887.0,1.00505594]
[1673602648619,0.00229711,18888.0,18887.0,1.65735646]
[1673602648862,0.00229711,18888.0,18887.0,1.49883352]
[1673602649366,0.00229711,18888.0,18887.0,1.65735646]
[1673602649609,0.00229711,18888.0,18887.0,1.39883352]
[1673602650103,0.00229711,18888.0,18887.0,1.39873395]
[1673602652216,0.0021918,18888.0,18887.0,1.39873395]
[1673602652441,0.0021918,18888.0,18887.0,0.74643343]
[1673602652709,0.5531007,18888.0,18887.0,0.13790043]
[1673602652965,0.73869598,18888.0,18887.0,0.13790043]
[1673602653230,0.83869598,18888.0,18887.0,0.13790043]
[1673602653534,0.6006574,18888.0,18887.0,0.13790043]
[1673602653807,0.99661231,18888.0,18887.0,0.13790043]
[1673602654069,0.9006574,18888.0,18887.0,0.13790043]
[1673602654335,0.6006574,18888.0,18887.0,0.13790043]
[1673602654596,1.29661231,18888.0,18887.0,0.13790043]
[1673602654861,0.99671669,18888.0,18887.0,0.13790043]
[1673602655124,1.29671669,18888.0,18887.0,0.13790043]
[1673602656849,0.98014763,18888.0,18887.0,0.13790043]
[1673602657352,0.89741131,18888.0,18887.0,0.13790043]
[1673602657610,0.73939415,18888.0,18887.0,0.13790043]
[1673602658128,0.83939415,18888.0,18887.0,0.13790043]
[1673602658683,0.52213047,18888.0,18887.0,0.13790043]
[1673602659630,1.01471852,18888.0,18887.0,0.13790043]
[1673602659880,0.83939415,18888.0,18887.0,0.13790043]
[1673602660888,0.1,18888.0,18887.0,0.13790043]
[1673602661141,0.1,18888.0,18887.0,0.75260576]
[1673602669089,0.4964935,18888.0,18887.0,0.75260576]
[1673602669588,0.7964935,18888.0,18887.0,0.13790043]
[1673602669831,0.83306718,18888.0,18887.0,0.13790043]
[1673602671116,1.15027579,18888.0,18887.0,0.13790043]
[1673602671340,0.83306718,18888.0,18887.0,0.13790043]
[1673602672332,0.96811757,18888.0,18887.0,0.13790043]
[1673602672606,0.84156718,18888.0,18887.0,0.13790043]
[1673602675155,0.84286784,18888.0,18887.0,0.13790043]
[1673602676154,0.98306784,18888.0,18887.0,0.13790043]
[1673602677631,1.30019556,18888.0,18887.0,0.13790043]
[1673602677928,0.98306784,18888.0,18887.0,0.13790043]
[1673602678178,0.30019105,18888.0,18887.0,0.13790043]
[1673602678428,0.43989105,18888.0,18887.0,0.13790043]
[1673602678732,0.53989105,18888.0,18887.0,0.13790043]
[1673602678980,0.2397,18888.0,18887.0,0.13790043]
[1673602679234,0.5397,18888.0,18887.0,0.13790043]
[1673602680242,0.5482,18888.0,18887.0,0.13790043]
[1673602682558,0.866,18888.0,18887.0,0.13790043]
[1673602685266,1.05192091,18888.0,18887.0,0.13790043]
[1673602686290,0.866,18888.0,18887.0,0.13790043]
[1673602687015,1.26234141,18888.0,18887.0,0.13790043]
[1673602687789,0.866,18888.0,18887.0,0.13790043]
[1673602689811,0.7263,18888.0,18887.0,0.13790043]
[1673602691824,1.20207234,18888.0,18887.0,0.13790043]
[1673602693289,1.38797362,18888.0,18886.0,0.00460427]
[1673602693543,0.6263,18887.0,18886.0,0.00460427]
[1673602693790,0.7263,18887.0,18886.0,0.00460427]
[1673602695290,1.12301661,18887.0,18886.0,0.01360427]
[1673602695539,1.12431787,18887.0,18886.0,0.00460427]
[1673602695780,1.53703444,18887.0,18886.0,0.01360427]
[1673602696025,1.14031783,18887.0,18886.0,0.01360427]
[1673602696531,0.0085,18887.0,18886.0,0.01360427]
[1673602696790,0.56386943,18887.0,18886.0,0.64671181]
[1673602697031,0.3173574,18887.0,18886.0,0.64671181]
[1673602698088,0.52541932,18888.0,18886.0,0.64671181]
[1673602698333,0.3,18887.0,18886.0,0.64671181]
[1673602698592,0.3085,18887.0,18886.0,0.64671181]
[1673602699833,0.32587363,18887.0,18886.0,0.64671181]
[1673602700079,0.62587363,18887.0,18886.0,0.64671181]
[1673602700334,0.3085,18887.0,18886.0,0.64671181]
[1673602701322,0.3085,18887.0,18886.0,0.01360427]
[1673602701573,0.5887,18887.0,18886.0,0.01360427]
[1673602701822,0.6887,18887.0,18886.0,0.01360427]
[1673602702606,1.16473918,18887.0,18886.0,0.01360427]
[1673602703602,1.02443918,18887.0,18886.0,0.01360427]
[1673602704345,1.4498585,18887.0,18886.0,0.01360427]
[1673602704593,1.02443918,18887.0,18886.0,0.01360427]
[1673602706597,0.5484,18887.0,18886.0,0.01360427]
[1673602707581,1.02443918,18887.0,18886.0,0.01360427]
[1673602707823,1.4498585,18887.0,18886.0,0.01360427]
[1673602708078,1.02443918,18887.0,18886.0,0.01360427]
[1673602708330,1.4498585,18887.0,18886.0,0.01360427]
[1673602708806,1.02443918,18887.0,18886.0,0.01360427]
[1673602709080,1.4498585,18887.0,18886.0,0.01360427]
[1673602709857,1.02443918,18887.0,18886.0,0.01360427]
[1673602710346,1.4498585,18887.0,18886.0,0.01360427]
[1673602710849,1.02443918,18887.0,18886.0,0.01360427]
[1673602711332,1.4498585,18887.0,18886.0,0.01360427]
[1673602712603,1.02443918,18887.0,18886.0,0.01360427]
[1673602713366,1.4498585,18887.0,18886.0,0.01360427]
[1673602713620,1.4377585,18887.0,18886.0,0.01360427]
[1673602714139,1.49302997,18887.0,18886.0,0.01360427]
[1673602715937,1.49433006,18887.0,18886.0,0.01360427]
[1673602716211,1.50283006,18887.0,18886.0,0.01360427]
[1673602716483,2.32468659,18887.0,18884.0,0.00450491]
[1673602716733,2.32468659,18887.0,18884.0,9.1e-07]
[1673602716734,1.81357747,18886.0,18884.0,9.1e-07]
[1673602716997,0.72509846,18885.0,18883.0,0.00573586]
[1673602717244,0.90978341,18884.0,18883.0,0.00573586]
[1673602717529,1.73601611,18884.0,18882.0,0.00567772]
[1673602717782,1.00496017,18883.0,18882.0,0.00567772]
[1673602718053,1.00496017,18883.0,18881.0,0.00629895]
[1673602718054,1.11346017,18883.0,18881.0,0.00629895]
[1673602718305,0.77599438,18882.0,18881.0,0.00629895]
[1673602718562,1.81845136,18882.0,18881.0,0.00629895]
[1673602719095,1.39319135,18882.0,18881.0,0.00629895]
[1673602719295,1.39239635,18882.0,18881.0,0.00610895]
[1673602720033,1.40239635,18882.0,18881.0,0.01410895]
[1673602720773,1.8276562,18882.0,18881.0,0.01410895]
[1673602721509,1.8361562,18882.0,18881.0,0.01410895]
[1673602722006,1.41089635,18882.0,18881.0,0.01410895]
[1673602722254,1.25180835,18882.0,18881.0,0.01410895]
[1673602725003,0.109205,18882.0,18881.0,0.59114433]
[1673602725241,0.16842203,18882.0,18881.0,0.59114433]
[1673602725492,0.01,18882.0,18881.0,0.59114433]
[1673602725730,0.16842203,18882.0,18881.0,0.59114433]
[1673602726716,0.46842203,18882.0,18881.0,0.59114433]
[1673602726969,0.56842203,18882.0,18881.0,0.59114433]
[1673602727213,0.11,18882.0,18881.0,0.59114433]
[1673602727453,0.01,18882.0,18881.0,0.59114433]
[1673602728734,0.34866481,18884.0,18882.0,0.54148953]
[1673602728991,0.0085,18883.0,18882.0,0.54148953]
[1673602729530,0.1,18884.0,18882.0,0.54148953]
[1673602729776,0.3,18884.0,18883.0,0.05414895]
[1673602730021,0.67680638,18885.0,18883.0,0.05414895]
[1673602730266,0.1,18884.0,18883.0,0.05414895]
[1673602730508,0.1,18884.0,18883.0,0.59755486]
[1673602730997,0.1,18884.0,18883.0,0.60755486]
[1673602731239,0.1,18884.0,18883.0,0.59755486]
[1673602731726,0.1,18884.0,18883.0,0.60355486]
[1673602732205,0.33770638,18884.0,18883.0,0.60355486]
[1673602732440,0.1,18884.0,18883.0,0.60355486]
[1673602732927,0.1,18884.0,18883.0,0.60255486]
[1673602733683,0.63770638,18884.0,18883.0,0.60255486]
[1673602733922,0.63770638,18884.0,18883.0,0.54940591]
[1673602734463,0.63770638,18884.0,18883.0,0.54440591]
[1673602736189,0.63900519,18884.0,18883.0,0.54440591]
[1673602736926,0.63900519,18884.0,18883.0,0.006]
[1673602737415,0.95594684,18884.0,18883.0,0.006]
[1673602739638,0.33900519,18884.0,18883.0,0.006]
[1673602739883,0.23900519,18884.0,18883.0,0.006]
[1673602740389,0.65594684,18884.0,18883.0,0.006]
[1673602740642,0.65594684,18884.0,18883.0,0.06451256]
[1673602740886,0.23900519,18884.0,18883.0,0.06451256]
[1673602741136,0.85594684,18884.0,18883.0,0.006]
[1673602741382,0.69754247,18884.0,18883.0,0.006]
[1673602741633,0.61824046,18884.0,18883.0,0.006]
[1673602741880,0.95605362,18884.0,18883.0,0.006]
[1673602742141,0.95605357,18884.0,18883.0,0.006]
[1673602742399,0.71824046,18884.0,18883.0,0.006]
[1673602743139,1.11503484,18884.0,18883.0,0.006]
[1673602743628,0.79809319,18884.0,18883.0,0.006]
[1673602744134,1.11519719,18884.0,18883.0,0.006]
[1673602744375,0.9450211,18884.0,18883.0,0.006]
[1673602744607,1.12051956,18884.0,18883.0,0.006]
[1673602745577,0.80340786,18884.0,18883.0,0.006]
[1673602746351,0.81190786,18884.0,18883.0,0.006]
[1673602746609,0.81155728,18884.0,18883.0,0.006]
[1673602746860,0.69471348,18884.0,18883.0,0.006]
[1673602751263,1.12128654,18884.0,18883.0,0.006]
[1673602751520,0.69471348,18884.0,18883.0,0.006]
[1673602752256,1.17081822,18884.0,18883.0,0.006]
[1673602752749,1.59739106,18884.0,18883.0,0.006]
[1673602752991,1.17081822,18884.0,18883.0,0.006]
[1673602753230,1.59739097,18884.0,18883.0,0.006]
[1673602753472,1.17081822,18884.0,18883.0,0.006]
[1673602753721,0.69471348,18884.0,18883.0,0.006]
[1673602754469,1.17081822,18884.0,18883.0,0.006]
[1673602754716,0.69471348,18884.0,18883.0,0.006]
[1673602754972,1.17081822,18884.0,18883.0,0.006]
[1673602755481,0.69471348,18884.0,18883.0,0.006]
[1673602755720,1.17081822,18884.0,18883.0,0.006]
[1673602755978,0.69471348,18884.0,18883.0,0.006]
[1673602756236,1.17081822,18884.0,18883.0,0.006]
[1673602756482,1.17081841,18884.0,18883.0,0.006]
[1673602757983,1.17081841,18884.0,18883.0,0.00590689]
[1673602760000,1.59735084,18884.0,18883.0,0.00590689]
[1673602760499,1.17081841,18884.0,18883.0,0.00590689]
[1673602760979,1.59735094,18884.0,18883.0,0.00590689]
[1673602761482,1.17081841,18884.0,18883.0,0.00590689]
[1673602762229,1.17081841,18884.0,18883.0,8.9e-07]
[1673602762230,2.12358276,18884.0,18883.0,8.9e-07]
[1673602762482,0.1,18883.0,18881.0,0.00610895]
[1673602762730,0.0085,18882.0,18881.0,0.00610895]
[1673602762969,0.1085,18882.0,18881.0,0.00610895]
[1673602763229,0.4085,18882.0,18881.0,0.00610895]
[1673602763473,0.80530953,18882.0,18881.0,0.01210895]
[1673602764478,0.4085,18882.0,18881.0,0.01210895]
[1673602764726,0.80534895,18882.0,18881.0,0.00610895]
[1673602764980,0.80534895,18882.0,18881.0,0.01210895]
[1673602765230,0.80534895,18882.0,18881.0,0.00610895]
[1673602765486,0.6014326,18882.0,18881.0,0.01410895]
[1673602766210,0.81687784,18882.0,18881.0,0.01410895]
[1673602768953,0.82870985,18882.0,18881.0,0.01410895]
[1673602769202,0.56144458,18882.0,18881.0,0.5502387]
[1673602769475,0.40273434,18882.0,18881.0,0.8796717]
[1673602769718,0.40273434,18882.0,18881.0,0.96832322]
[1673602770501,0.40273434,18882.0,18881.0,0.5502387]
[1673602772072,0.16469236,18882.0,18881.0,0.5502387]
[1673602772321,0.39673434,18883.0,18881.0,0.8716717]
[1673602772576,0.39673434,18883.0,18882.0,0.329433]
[1673602772804,0.39673434,18883.0,18882.0,0.93389599]
[1673602773090,0.39673434,18883.0,18882.0,0.60446299]
[1673602773887,0.39673434,18883.0,18882.0,0.66562018]
[1673602774133,0.40273434,18883.0,18882.0,0.67362018]
[1673602776634,0.40403702,18883.0,18882.0,0.67362018]
[1673602781615,0.39803702,18883.0,18881.0,0.14640895]
[1673602781861,0.70983668,18883.0,18882.0,0.001]
[1673602782365,0.80983668,18883.0,18882.0,0.001]
[1673602782629,0.80983668,18883.0,18881.0,0.00610895]
[1673602782630,0.1,18882.0,18881.0,0.00610895]
[1673602782879,0.95541922,18882.0,18881.0,0.00610895]
[1673602784176,0.85541922,18882.0,18881.0,0.6564157]
[1673602784422,0.85541922,18882.0,18881.0,0.65632153]
[1673602784423,0.45868182,18882.0,18881.0,0.65632153]
[1673602784671,0.16468182,18882.0,18881.0,0.65732153]
[1673602784928,0.16468182,18882.0,18881.0,0.58007902]
[1673602786385,0.26450882,18882.0,18881.0,0.58007902]
[1673602787128,0.16450882,18882.0,18881.0,0.58007902]
[1673602787368,0.1,18883.0,18882.0,0.553028]
[1673602787620,0.1,18883.0,18882.0,0.60903228]
[1673602788620,0.1,18883.0,18882.0,0.61603228]
[1673602789365,0.1,18883.0,18882.0,0.560028]
[1673602789869,0.1,18883.0,18882.0,0.57374891]
[1673602791113,0.22375066,18884.0,18882.0,0.57374891]
[1673602792384,0.22375066,18884.0,18882.0,0.56674891]
[1673602793373,0.22375066,18884.0,18882.0,0.57374891]
[1673602795369,0.31735939,18883.0,18882.0,0.57374891]
[1673602796375,0.31735939,18883.0,18882.0,0.02072091]
[1673602796630,0.41735939,18883.0,18882.0,0.64943612]
[1673602796869,0.41735939,18883.0,18882.0,0.65643612]
[1673602797161,0.4186603,18883.0,18882.0,0.65643612]
[1673602798410,0.4186603,18883.0,18882.0,0.02072091]
[1673602798411,0.94241096,18883.0,18882.0,0.02072091]
[1673602798674,0.94243156,18883.0,18882.0,0.02072091]
[1673602799178,0.62505157,18883.0,18882.0,0.02072091]
[1673602800679,0.94244162,18883.0,18882.0,0.02072091]
[1673602801411,0.62505157,18883.0,18882.0,0.02072091]
[1673602802151,0.9424454,18883.0,18882.0,0.02072091]
[1673602802392,0.62505157,18883.0,18882.0,0.02072091]
[1673602804877,0.40130091,18883.0,18882.0,0.02072091]
[1673602805140,0.79809745,18883.0,18882.0,0.02072091]
[1673602805635,0.40130091,18883.0,18882.0,0.02072091]
[1673602808848,0.40130091,18883.0,18882.0,0.02063553]
[1673602812398,0.98375738,18883.0,18882.0,0.02063553]
[1673602813668,0.88600671,18883.0,18882.0,0.02063553]
[1673602816184,0.88600671,18883.0,18882.0,5.3e-07]
[1673602816451,0.1,18882.0,18881.0,0.00601478]
[1673602816726,0.4085,18882.0,18881.0,0.00601478]
[1673602817216,0.40979966,18882.0,18881.0,0.00601478]
[1673602817709,0.41679966,18882.0,18881.0,0.00701478]
[1673602817973,0.81359152,18882.0,18881.0,0.00701478]
[1673602818312,0.41359152,18882.0,18881.0,0.02242061]
[1673602818516,0.73101364,18882.0,18881.0,0.5200352]
[1673602819590,1.03101364,18882.0,18881.0,0.5200352]
[1673602821104,0.73101364,18882.0,18881.0,0.5200352]
[1673602821353,0.33422178,18882.0,18881.0,0.5200352]
[1673602821622,0.40511614,18882.0,18881.0,0.71302307]
[1673602821876,0.16702555,18882.0,18881.0,1.04252003]
[1673602822391,0.16702555,18882.0,18881.0,0.52949961]
[1673602822392,0.00829966,18882.0,18881.0,0.52949961]
[1673602822644,0.00829966,18882.0,18881.0,0.62949961]
[1673602822900,0.71459186,18885.0,18881.0,2.67139574]
[1673602822901,0.39681648,18885.0,18881.0,2.67139574]
[1673602823148,0.39681648,18885.0,18882.0,1.04638982]
[1673602823437,0.39681648,18885.0,18883.0,0.329433]
[1673602823438,0.15872589,18885.0,18883.0,0.329433]
[1673602823666,0.39681648,18886.0,18884.0,0.329433]
[1673602823927,0.39681648,18886.0,18884.0,0.2392]
[1673602823928,0.39681648,18885.0,18884.0,0.2392]
[1673602824199,0.39681648,18885.0,18884.0,0.1392]
[1673602824438,0.49681648,18885.0,18884.0,0.1392]
[1673602824931,0.49681648,18885.0,18884.0,0.15312]
[1673602825441,0.15872589,18885.0,18884.0,0.80488822]
[1673602825687,0.15872589,18885.0,18884.0,1.13432122]
[1673602825974,0.15872589,18885.0,18884.0,0.80488822]
[1673602826193,0.15872589,18885.0,18884.0,1.12040122]
[1673602826442,0.15872589,18885.0,18884.0,0.79096822]
[1673602826930,0.15872589,18885.0,18884.0,1.12040122]
[1673602828433,0.15872589,18885.0,18884.0,0.79096822]
[1673602829187,0.39681648,18885.0,18884.0,0.1482]
[1673602829434,0.49681648,18885.0,18884.0,0.1482]
[1673602829918,0.49681648,18885.0,18884.0,0.1392]
[1673602830163,0.49681648,18885.0,18884.0,0.1482]
[1673602830409,0.49681648,18885.0,18884.0,0.1392]
[1673602830677,0.49681648,18885.0,18884.0,0.1402]
[1673602832997,0.33809059,18885.0,18884.0,0.1402]
[1673602833263,0.95551271,18885.0,18884.0,0.14026395]
[1673602833544,0.33809059,18885.0,18884.0,0.1402]
[1673602833792,0.63809059,18885.0,18884.0,0.1402]
[1673602834048,0.49657237,18885.0,18884.0,0.1402]
[1673602834294,0.39657237,18885.0,18884.0,0.1402]
[1673602834537,0.15848178,18885.0,18884.0,0.1402]
[1673602834801,0.39452137,18885.0,18884.0,0.1402]
[1673602835520,0.15643078,18885.0,18884.0,0.1402]
[1673602836735,0.85551271,18885.0,18884.0,0.1402]
[1673602836977,0.70529186,18885.0,18884.0,0.001]
[1673602837217,0.80529186,18885.0,18884.0,0.001]
[1673602837720,1.12354404,18885.0,18884.0,0.001]
[1673602837971,0.96445915,18885.0,18884.0,0.001]
[1673602838216,0.64750441,18885.0,18884.0,0.001]
[1673602838712,0.34750441,18885.0,18884.0,0.001]
[1673602838965,0.10979744,18885.0,18884.0,0.001]
[1673602839206,0.34750441,18885.0,18884.0,0.67051336]
[1673602839462,0.00979744,18885.0,18884.0,0.67051336]
[1673602839708,0.00129744,18885.0,18884.0,0.94981336]
[1673602839963,0.00129744,18885.0,18884.0,1.27924636]
[1673602840455,0.00129744,18885.0,18884.0,0.609661]
[1673602840715,0.00129744,18885.0,18884.0,0.608733]
[1673602840964,0.00129744,18885.0,18884.0,0.617733]
[1673602841205,0.00129744,18885.0,18884.0,1.30090605]
[1673602841440,0.00129744,18885.0,18884.0,1.44190605]
[1673602841929,0.00129744,18885.0,18884.0,1.30090605]
[1673602842203,0.00129744,18885.0,18884.0,1.16190605]
[1673602842933,0.00129744,18885.0,18884.0,1.23990605]
[1673602844452,0.00129744,18885.0,18884.0,1.2398421]
[1673602844699,0.00129744,18885.0,18884.0,1.23990605]
[1673602845979,0.00129744,18885.0,18884.0,1.2398421]
[1673602846508,0.00129744,18885.0,18884.0,0.9104091]
[1673602846766,0.00129744,18885.0,18884.0,1.3398421]
[1673602847521,0.00129744,18885.0,18884.0,1.0995421]
[1673602847803,0.00129744,18885.0,18884.0,0.7701091]
[1673602851986,0.00129744,18885.0,18884.0,0.89664001]
[1673602852486,0.00129744,18885.0,18884.0,0.7701091]
[1673602856025,0.00120654,18885.0,18884.0,0.7701091]
[1673602856548,0.01061562,18888.0,18885.0,0.1]
[1673602856831,0.01061562,18888.0,18886.0,0.329433]
[1673602857097,0.01061562,18888.0,18887.0,0.48813607]
[1673602857344,0.01061562,18888.0,18887.0,0.429433]
[1673602857847,0.01061562,18888.0,18887.0,0.850333]
[1673602858096,0.01191871,18888.0,18887.0,1.00903607]
[1673602858842,0.01191871,18888.0,18887.0,1.47743607]